bitfinex/quotes_SOLUSD_20251128
["timestamp","ask_amount","ask_price","bid_price","bid_amount"]
[1764363279371,10.45110579,137.91,137.9,61.4]
[1764363279750,10.45110579,137.91,137.9,62.06]
[1764363280204,10.45110579,137.91,137.9,61.4]
[1764363280469,10.45110579,137.91,137.9,62.06]
[1764363280668,10.45110579,137.91,137.9,61.4]
[1764363281547,10.45110579,137.91,137.9,62.06]
[1764363282547,10.45110579,137.91,137.9,61.4]
[1764363283573,10.45110579,137.91,137.9,62.06]
[1764363284975,7.25058004,137.92,137.9,62.06]
[1764363285174,3.2,137.91,137.9,62.06]
[1764363289301,29.25887027,137.91,137.87,61.4]
[1764363289458,0.68,137.9,137.87,62.06]
[1764363289766,3.2,137.89,137.87,62.06]
[1764363290158,10.45257751,137.89,137.87,62.06]
[1764363294091,26.06439222,137.88,137.84,0.66]
[1764363294382,3.2,137.87,137.84,0.66]
[1764363294586,3.88,137.87,137.84,0.66]
[1764363294959,29.05421686,137.88,137.84,0.66]
[1764363295163,3.2,137.87,137.84,0.66]
[1764363295764,7.25268349,137.88,137.84,0.66]
[1764363295974,25.38157564,137.9,137.85,7.25426187]
[1764363296171,3.2,137.89,137.85,7.25426187]
[1764363296372,3.2,137.89,137.86,0.66]
[1764363299079,10.45263741,137.89,137.86,0.66]
[1764363299386,0.68,137.88,137.84,0.66]
[1764363299587,3.2,137.87,137.84,0.66]
[1764363300466,0.68,137.88,137.84,0.66]
[1764363300667,3.2,137.87,137.84,0.66]
[1764363301163,10.45362189,137.87,137.84,62.06]
[1764363301573,10.45362189,137.87,137.85,0.66]
[1764363302973,11.13362189,137.87,137.84,61.4]
[1764363303166,10.45362189,137.87,137.85,0.66]
[1764363304486,3.2,137.87,137.85,0.66]
[1764363305587,7.25292331,137.88,137.85,0.66]
[1764363305790,10.45292331,137.88,137.85,7.91404564]
[1764363306284,10.45292331,137.88,137.86,0.7]
[1764363306877,21.80153337,137.92,137.86,69.35351032]
[1764363307077,25.00153337,137.92,137.87,0.7]
[1764363307278,3.2,137.92,137.87,0.7]
[1764363307692,3.91,137.92,137.87,0.7]
[1764363308096,7.25110579,137.91,137.87,7.95300043]
[1764363308478,7.25110579,137.91,137.88,0.7]
[1764363310091,7.25110579,137.91,137.88,62.1]
[1764363310278,7.25110579,137.91,137.89,0.7]
[1764363310481,7.25110579,137.91,137.89,62.1]
[1764363312176,7.25110579,137.91,137.9,0.7]
[1764363312399,7.25110579,137.91,137.89,62.1]
[1764363312599,7.25110579,137.91,137.9,0.7]
[1764363312777,10.45081498,137.92,137.9,62.1]
[1764363314496,7.25081498,137.92,137.91,0.7]
[1764363314678,10.45081498,137.92,137.9,61.4]
[1764363314875,10.45081498,137.92,137.9,62.1]
[1764363317603,7.25081498,137.92,137.9,62.1]
[1764363317784,10.45081498,137.92,137.9,62.1]
[1764363320385,10.45081498,137.92,137.91,0.7]
[1764363321406,10.45081498,137.92,137.9,62.1]
[1764363323794,11.14081498,137.92,137.9,61.4]
[1764363325812,3.2,137.91,137.9,61.4]
[1764363326384,3.2,137.91,137.9,62.1]
[1764363328009,3.2,137.91,137.9,61.4]
[1764363328198,3.2,137.91,137.9,62.1]
[1764363330304,10.45110579,137.91,137.9,61.4]
[1764363330508,10.45110579,137.91,137.9,62.1]
[1764363330909,10.45110579,137.91,137.9,61.4]
[1764363332817,10.45110579,137.91,137.85,0.7]
[1764363332818,29.26887027,137.91,137.85,0.7]
[1764363332997,0.69,137.9,137.85,62.1]
[1764363333199,3.2,137.89,137.85,62.1]
[1764363333596,0.69,137.88,137.85,62.1]
[1764363333916,7.25320954,137.87,137.85,62.1]
[1764363334817,7.9428764,137.88,137.85,62.1]
[1764363335116,3.2,137.87,137.85,62.1]
[1764363336329,3.2,137.87,137.86,0.67]
[1764363337436,3.2,137.87,137.85,61.4]
[1764363337600,3.2,137.87,137.85,62.07]
[1764363337802,10.45337064,137.87,137.85,62.07]
[1764363338322,11.12337064,137.87,137.85,61.4]
[1764363338504,11.12337064,137.87,137.85,62.07]
[1764363338705,10.45337064,137.87,137.85,62.07]
[1764363339324,3.2,137.87,137.85,62.07]
[1764363339500,3.2,137.87,137.85,61.4]
[1764363339700,3.2,137.87,137.86,0.67]
[1764363339899,3.2,137.87,137.85,62.07]
[1764363340507,10.4532905,137.87,137.85,62.07]
[1764363343431,10.4532905,137.87,137.86,0.67]
[1764363343607,10.4532905,137.87,137.85,62.07]
[1764363344525,7.2532905,137.87,137.85,62.07]
[1764363344707,10.4532905,137.87,137.85,62.07]
[1764363346500,7.92282548,137.88,137.86,0.67]
[1764363346905,3.2,137.87,137.86,0.67]
[1764363348306,7.25058004,137.92,137.86,7.92372429]
[1764363348525,7.25023797,137.93,137.87,3.2]
[1764363348722,3.2,137.92,137.87,3.87]
[1764363348923,3.2,137.92,137.88,0.67]
[1764363349705,3.2,137.92,137.89,7.25215751]
[1764363350210,3.2,137.92,137.9,0.67]
[1764363351324,7.25023797,137.93,137.9,0.67]
[1764363351530,10.45023797,137.93,137.9,0.67]
[1764363352530,3.2,137.93,137.9,7.9215755]
[1764363352933,3.2,137.93,137.91,0.67]
[1764363354019,10.45006412,137.93,137.91,0.67]
[1764363357616,2.45267251,137.92,137.91,0.67]
[1764363360043,10.3732811,137.92,137.88,7.92244947]
[1764363360255,2.45267251,137.9,137.88,7.92244947]
[1764363360447,2.45267251,137.9,137.89,0.67]
[1764363360823,2.45267251,137.91,137.89,0.67]
[1764363361145,2.45267251,137.91,137.89,7.92208484]
[1764363361318,12.9032811,137.92,137.89,7.92208484]
[1764363361520,12.9032811,137.92,137.9,0.67]
[1764363362659,2.45267251,137.93,137.9,7.92144712]
[1764363362822,3.2,137.93,137.9,7.92144712]
[1764363363025,3.2,137.93,137.91,0.67]
[1764363363537,3.2,137.93,137.91,62.07]
[1764363363850,3.2,137.93,137.91,69.32099404]
[1764363364048,9.7020989,137.95,137.92,0.67]
[1764363364240,9.7020989,137.95,137.92,62.07]
[1764363364751,9.7020989,137.95,137.93,0.67]
[1764363365932,2.45267251,137.94,137.92,68.65055182]
[1764363366138,0.69,137.94,137.93,61.4]
[1764363366530,7.93942639,137.95,137.93,61.4]
[1764363367151,5.65267251,137.94,137.93,61.4]
[1764363367516,2.45267251,137.94,137.93,61.4]
[1764363367737,2.45267251,137.94,137.93,62.11]
[1764363370143,2.45267251,137.94,137.93,61.4]
[1764363371221,5.65267251,137.94,137.93,61.4]
[1764363373543,2.45267251,137.94,137.93,62.11]
[1764363375739,7.24871199,137.96,137.93,69.36001358]
[1764363375945,2.45267251,137.97,137.94,0.72]
[1764363376860,10.44765662,137.98,137.94,0.72]
[1764363377067,2.45267251,137.97,137.94,62.12]
[1764363377437,2.45267251,137.97,137.95,0.72]
[1764363378838,2.45267251,137.97,137.94,61.4]
[1764363378839,3.14267251,137.96,137.94,61.4]
[1764363379052,12.90167577,137.95,137.94,61.4]
[1764363379249,13.59167577,137.95,137.91,7.97100658]
[1764363379425,2.45267251,137.94,137.92,0.72]
[1764363380853,2.45267251,137.93,137.92,0.72]
[1764363381757,12.90167577,137.95,137.92,0.72]
[1764363382658,9.70167577,137.95,137.92,0.72]
[1764363384262,9.70167577,137.95,137.92,62.12]
[1764363384447,9.70167577,137.95,137.93,0.72]
[1764363385642,3.14267251,137.94,137.91,69.37100658]
[1764363385950,3.14267251,137.94,137.91,7.97100658]
[1764363385951,2.45267251,137.93,137.91,7.97100658]
[1764363386350,2.45267251,137.93,137.92,0.72]
[1764363393648,2.45267251,137.93,137.91,7.25100658]
[1764363393845,2.45267251,137.93,137.91,7.97100658]
[1764363394843,2.45267251,137.93,137.9,7.25163161]
[1764363395044,2.45267251,137.93,137.92,0.72]
[1764363395561,2.45267251,137.93,137.9,7.25163161]
[1764363395762,2.45267251,137.93,137.91,0.66]
[1764363396160,2.45267251,137.93,137.91,62.06]
[1764363396355,2.45267251,137.93,137.91,68.65094867]
[1764363396539,2.45267251,137.93,137.92,0.66]
[1764363399757,2.45267251,137.94,137.92,7.91058004]
[1764363400139,2.45267251,137.95,137.93,0.66]
[1764363400339,3.2,137.95,137.93,0.66]
[1764363401656,3.2,137.95,137.93,7.90997502]
[1764363402157,5.65267251,137.95,137.93,69.30997502]
[1764363403046,2.45267251,137.94,137.93,69.30997502]
[1764363405958,10.42877318,137.96,137.93,69.30997502]
[1764363406158,7.24877318,137.96,137.94,0.66]
[1764363406363,7.24877318,137.96,137.94,62.06]
[1764363406570,7.24877318,137.96,137.94,61.4]
[1764363406745,7.24877318,137.96,137.95,0.66]
[1764363407153,12.99069004,137.97,137.95,0.66]
[1764363407362,2.45267251,137.96,137.95,0.66]
[1764363408246,11.09789966,137.98,137.95,7.90893217]
[1764363408442,2.45267251,137.96,137.95,7.90893217]
[1764363408668,2.45267251,137.96,137.95,69.30893217]
[1764363410268,2.45267251,137.96,137.95,62.06]
[1764363410651,3.8302061,137.96,137.95,62.06]
[1764363415253,11.07868391,137.96,137.95,61.4]
[1764363415467,11.74868391,137.96,137.95,61.4]
[1764363415770,11.07868391,137.96,137.95,61.4]
[1764363416869,11.07868391,137.96,137.95,62.06]
[1764363416870,3.8302061,137.96,137.95,62.06]
[1764363420674,3.8302061,137.98,137.95,69.30851745]
[1764363420866,4.0302061,137.99,137.96,0.66]
[1764363421177,3.8302061,137.98,137.96,62.06]
[1764363421778,3.8302061,137.98,137.97,0.66]
[1764363423077,3.8302061,137.98,137.97,69.30795245]
[1764363423377,4.0302061,137.99,137.97,69.30795245]
[1764363423574,4.0302061,137.99,137.98,0.66]
[1764363426155,0.2,137.99,137.98,7.90742716]
[1764363426356,4.0302061,137.99,137.98,7.90742716]
[1764363426562,0.2,137.99,137.98,7.90742716]
[1764363428583,0.2,137.99,137.98,11.08742716]
[1764363428764,0.2,137.99,137.98,72.48742716]
[1764363429163,4.0302061,138.02,137.99,61.2]
[1764363429381,4.0302061,138.02,137.99,61.89]
[1764363429583,4.0302061,138.02,138.0,0.69]
[1764363429786,0.2,138.02,138.0,0.69]
[1764363430581,0.2,138.02,138.01,7.24585174]
[1764363430967,0.2,138.02,138.01,7.93585174]
[1764363432173,0.2,138.02,138.01,69.13585174]
[1764363435988,4.0302061,138.02,138.01,61.2]
[1764363438395,4.0302061,138.02,138.01,68.44585174]
[1764363439890,4.0302061,138.02,138.01,69.13585174]
[1764363441078,4.0302061,138.02,138.01,68.44585174]
[1764363443900,4.0302061,138.02,138.01,69.14585174]
[1764363445185,4.0302061,138.02,138.01,61.9]
[1764363449200,4.0302061,138.02,138.01,69.14585174]
[1764363449998,4.0302061,138.02,138.01,68.44585174]
[1764363451013,0.2,138.02,138.01,68.44585174]
[1764363451210,4.0302061,138.02,138.01,69.14585174]
[1764363453499,0.2,138.02,138.01,69.14585174]
[1764363456502,0.2,138.02,138.01,94.5489838]
[1764363458495,3.8302061,138.06,138.03,61.0]
[1764363458804,0.2,138.07,138.04,17.0332917]
[1764363459106,0.2,138.07,138.04,17.7132917]
[1764363459289,0.2,138.07,138.05,0.68]
[1764363460086,0.2,138.07,138.05,61.68]
[1764363460491,0.2,138.07,138.06,0.68]
[1764363460702,0.2,138.07,138.06,68.92322758]
[1764363461883,4.7502061,138.07,138.06,68.24322758]
[1764363462286,4.0302061,138.07,138.06,68.24322758]
[1764363462988,0.2,138.07,138.06,68.24322758]
[1764363466795,0.2,138.07,138.06,68.92322758]
[1764363471213,0.2,138.07,138.06,61.0]
[1764363471214,4.7502061,138.07,138.06,61.0]
[1764363471415,11.99290907,138.07,138.06,61.0]
[1764363472417,4.7502061,138.07,138.06,61.0]
[1764363472621,3.36785413,138.07,138.06,61.0]
[1764363472821,10.6105571,138.07,138.06,61.0]
[1764363479902,8.16270297,138.07,138.06,61.0]
[1764363480102,10.6105571,138.07,138.06,61.0]
[1764363480304,9.8905571,138.07,138.06,61.0]
[1764363480802,10.6105571,138.07,138.06,61.0]
[1764363482324,10.6105571,138.07,138.04,61.0]
[1764363482525,2.44785413,138.06,138.04,0.68]
[1764363482727,3.16785413,138.06,138.04,0.68]
[1764363483034,2.44785413,138.05,138.03,0.68]
[1764363483202,2.64785413,138.07,138.03,11.10438405]
[1764363483404,0.2,138.07,138.03,90.21638868]
[1764363483612,0.2,138.07,138.04,0.68]
[1764363488317,0.2,138.07,138.05,7.24375226]
[1764363488732,0.86,138.07,138.04,68.24420457]
[1764363488915,2.44785413,138.06,138.04,68.24420457]
[1764363489112,2.44785413,138.06,138.04,68.95420457]
[1764363489830,2.44785413,138.06,138.05,0.71]
[1764363492437,2.64785413,138.07,138.05,0.71]
[1764363493635,2.64785413,138.07,138.05,7.95348158]
[1764363494336,2.64785413,138.07,138.05,68.95348158]
[1764363494740,2.64785413,138.07,138.05,61.71]
[1764363494935,2.64785413,138.07,138.05,61.0]
[1764363495114,3.10785413,138.06,138.05,61.0]
[1764363495640,2.44785413,138.06,138.05,61.0]
[1764363497821,2.44785413,138.06,138.05,61.71]
[1764363498028,2.64785413,138.07,138.05,61.71]
[1764363500024,3.34785413,138.07,138.05,61.71]
[1764363500653,3.14785413,138.06,138.02,61.71]
[1764363500822,2.44785413,138.04,138.02,68.95532676]
[1764363501842,2.44785413,138.05,138.03,0.71]
[1764363502041,0.9,138.07,138.03,0.71]
[1764363502042,2.44785413,138.06,138.03,0.71]
[1764363503050,2.44785413,138.06,138.03,7.95449227]
[1764363503243,2.44785413,138.06,138.04,0.71]
[1764363505951,2.44785413,138.05,138.04,0.71]
[1764363506156,2.44785413,138.05,138.04,61.71]
[1764363506856,2.44785413,138.06,138.04,68.95427702]
[1764363507061,0.2,138.07,138.05,0.71]
[1764363507550,0.2,138.07,138.05,7.95352966]
[1764363507931,0.2,138.07,138.06,0.71]
[1764363508131,0.2,138.07,138.06,61.71]
[1764363510529,0.2,138.07,138.06,68.95322758]
[1764363512652,0.2,138.07,138.06,61.71]
[1764363512871,0.2,138.07,138.06,68.95322758]
[1764363516868,3.30785413,138.07,138.06,61.0]
[1764363517035,2.64785413,138.07,138.06,61.0]
[1764363519162,0.2,138.07,138.06,68.95322758]
[1764363519340,2.64785413,138.07,138.06,61.71]
[1764363519547,2.64785413,138.07,138.06,61.0]
[1764363519968,2.64785413,138.07,138.06,61.71]
[1764363520772,2.64785413,138.07,138.06,61.0]
[1764363522568,2.64785413,138.07,138.06,61.71]
[1764363522944,2.64785413,138.07,138.06,61.0]
[1764363523267,0.2,138.07,138.06,61.0]
[1764363525145,0.2,138.07,138.06,61.71]
[1764363525343,11.2817205,138.11,138.06,61.71]
[1764363525665,0.2,138.11,138.08,16.308864]
[1764363525872,0.2,138.11,138.09,0.71]
[1764363526645,0.2,138.11,138.1,7.24112961]
[1764363527150,0.2,138.11,138.1,7.95112961]
[1764363530262,0.2,138.11,138.09,3.89]
[1764363530575,2.44785413,138.1,138.07,27.44140472]
[1764363530767,17.89208806,138.11,138.06,68.2432152]
[1764363530958,2.44785413,138.08,138.06,68.9532152]
[1764363532567,3.82295643,138.08,138.06,68.9532152]
[1764363533692,0.66,138.07,138.05,80.488864]
[1764363533866,3.82295643,138.07,138.05,88.44260183]
[1764363534550,3.82295643,138.07,138.05,87.73260183]
[1764363534751,3.82295643,138.07,138.06,0.71]
[1764363534972,3.82295643,138.08,138.06,0.71]
[1764363535404,3.82295643,138.1,138.06,7.95293794]
[1764363535562,3.82295643,138.1,138.06,26.06100689]
[1764363535761,3.82295643,138.1,138.07,0.71]
[1764363535762,4.48295643,138.1,138.07,0.71]
[1764363536177,3.82295643,138.09,138.07,0.71]
[1764363537977,0.2,138.11,138.07,87.05921275]
[1764363538282,0.2,138.11,138.08,19.488864]
[1764363538472,0.2,138.11,138.08,20.198864]
[1764363538673,0.2,138.11,138.09,0.71]
[1764363538990,0.2,138.11,138.1,3.18]
[1764363539163,0.2,138.11,138.1,64.18]
[1764363539361,0.2,138.11,138.1,64.89]
[1764363539963,0.2,138.11,138.1,72.13112961]
[1764363540268,0.2,138.11,138.1,11.13112961]
[1764363552989,0.2,138.11,138.1,20.22539767]
[1764363553395,0.2,138.11,138.1,27.46310959]
[1764363557595,0.2,138.11,138.1,18.36884153]
[1764363557776,0.2,138.11,138.1,10.42112961]
[1764363558698,0.87,138.11,138.1,10.42112961]
[1764363558888,0.2,138.11,138.1,10.42112961]
[1764363559587,0.2,138.11,138.1,11.13112961]
[1764363565507,0.2,138.11,138.1,10.42112961]
[1764363566583,0.87,138.11,138.1,10.42112961]
[1764363566974,4.69295643,138.11,138.1,10.42112961]
[1764363569285,4.69295643,138.11,138.09,7.24165399]
[1764363569896,0.2,138.11,138.1,0.71]
[1764363570098,0.2,138.11,138.09,7.95165399]
[1764363570607,0.87,138.11,138.09,7.95165399]
[1764363573704,0.2,138.11,138.09,7.95165399]
[1764363573910,0.2,138.11,138.09,7.24165399]
[1764363574206,0.2,138.11,138.1,0.71]
[1764363574893,0.2,138.11,138.09,7.95165399]
[1764363575090,0.2,138.11,138.1,0.68]
[1764363575491,0.2,138.11,138.1,3.86]
[1764363576313,0.2,138.11,138.1,11.10112961]
[1764363578598,0.2,138.11,138.1,10.42112961]
[1764363579199,0.2,138.11,138.1,3.18]
[1764363579581,0.89,138.11,138.1,3.18]
[1764363580211,0.89,138.11,138.1,10.42112961]
[1764363584713,4.71295643,138.11,138.09,7.24151552]
[1764363584917,0.69,138.1,138.09,7.24151552]
[1764363586513,4.02295643,138.11,138.09,7.24151552]
[1764363586723,0.89,138.11,138.09,7.24151552]
[1764363587023,0.89,138.11,138.09,7.92151552]
[1764363587607,0.2,138.11,138.09,7.92151552]
[1764363588810,0.89,138.11,138.09,7.24151552]
[1764363589919,0.89,138.11,138.09,7.92151552]
[1764363591312,0.69,138.1,138.08,26.73084206]
[1764363591700,0.69,138.1,138.06,7.24273513]
[1764363591701,4.51295643,138.1,138.06,7.24273513]
[1764363591895,3.82295643,138.09,138.06,26.73159913]
[1764363592118,4.51295643,138.09,138.06,27.41159913]
[1764363592518,3.13655961,138.09,138.06,27.41159913]
[1764363597129,0.69,138.08,138.06,26.73159913]
[1764363597729,3.13655961,138.08,138.06,26.73159913]
[1764363598319,3.13655961,138.07,138.06,3.18]
[1764363598523,3.13655961,138.07,138.05,7.24349507]
[1764363598950,0.69,138.06,138.04,26.7329706]
[1764363599322,0.69,138.06,138.04,27.4129706]
[1764363599619,3.13655961,138.07,138.04,27.4129706]
[1764363600336,3.13655961,138.07,138.04,11.1041066]
[1764363600536,3.13655961,138.07,138.04,27.4129706]
[1764363600911,3.13655961,138.06,138.04,26.7329706]
[1764363601114,3.13655961,138.06,138.04,84.9529706]
[1764363601325,0.69,138.08,138.05,0.68]
[1764363601632,2.44655961,138.1,138.05,65.26]
[1764363601821,2.44655961,138.09,138.05,65.26]
[1764363602134,3.13655961,138.09,138.06,0.68]
[1764363602521,0.69,138.09,138.07,7.24270297]
[1764363603621,3.13655961,138.09,138.07,7.24270297]
[1764363604122,0.69,138.09,138.07,7.24270297]
[1764363606338,7.24117951,138.1,138.07,0.66]
[1764363606514,7.91117951,138.1,138.07,0.66]
[1764363606714,10.35773912,138.1,138.07,0.66]
[1764363607019,3.11655961,138.09,138.07,61.4]
[1764363607538,0.67,138.08,138.07,61.4]
[1764363608125,3.11655961,138.09,138.07,61.4]
[1764363610335,0.2,138.11,138.08,0.66]
[1764363610537,0.2,138.11,138.1,16.308864]
[1764363610734,0.2,138.11,138.1,16.968864]
[1764363610956,0.2,138.11,138.1,12.20082767]
[1764363611445,0.2,138.11,138.1,9.75426806]
[1764363611645,0.2,138.11,138.1,16.99539767]
[1764363612917,0.2,138.11,138.1,7.24112961]
[1764363613117,0.2,138.11,138.1,7.90112961]
[1764363615836,0.2,138.11,138.09,88.13043148]
[1764363616043,0.2,138.11,138.09,88.84043148]
[1764363617658,0.2,138.11,138.1,7.24112961]
[1764363617833,0.2,138.11,138.1,7.95112961]
[1764363622033,0.2,138.11,138.1,69.35112961]
[1764363627962,0.2,138.12,138.11,68.44060531]
[1764363629157,3.33655961,138.12,138.11,61.2]
[1764363629751,10.57664069,138.12,138.08,61.2]
[1764363629934,2.44655961,138.09,138.08,61.2]
[1764363630261,2.44655961,138.09,138.06,80.688864]
[1764363630472,3.13655961,138.08,138.06,80.688864]
[1764363630634,3.13655961,138.08,138.06,87.93202093]
[1764363630963,0.2,138.12,138.09,16.308864]
[1764363631163,0.2,138.12,138.1,0.71]
[1764363632562,0.2,138.12,138.1,7.95080906]
[1764363636761,0.2,138.12,138.1,69.15080906]
[1764363636962,0.2,138.12,138.11,0.7]
[1764363637142,0.2,138.12,138.11,13.69832859]
[1764363637646,0.2,138.12,138.11,16.1448882]
[1764363637845,0.2,138.12,138.11,13.69832859]
[1764363638063,0.2,138.12,138.11,20.9389339]
[1764363639676,0.2,138.12,138.11,20.65461076]
[1764363639846,0.2,138.12,138.11,11.12060531]
[1764363642772,2.84655961,138.15,138.12,61.2]
[1764363644167,2.44655961,138.15,138.12,61.2]
[1764363644377,2.44655961,138.14,138.12,61.2]
[1764363645051,3.14655961,138.14,138.12,61.2]
[1764363645260,3.14655961,138.14,138.12,68.4398615]
[1764363647881,2.44655961,138.13,138.12,68.4398615]
[1764363648382,2.44655961,138.14,138.12,68.4398615]
[1764363648681,3.14655961,138.14,138.12,68.4398615]
[1764363649058,0.7,138.14,138.12,68.4398615]
[1764363649274,3.14655961,138.14,138.12,68.4398615]
[1764363651386,2.44655961,138.14,138.12,68.4398615]
[1764363652482,3.14655961,138.14,138.12,68.4398615]
[1764363652662,4.51959425,138.14,138.12,7.2398615]
[1764363652869,3.81959425,138.14,138.12,7.2398615]
[1764363653686,3.81959425,138.14,138.12,7.9398615]
[1764363654882,3.81959425,138.14,138.12,7.2398615]
[1764363655076,4.51959425,138.14,138.12,7.2398615]
[1764363658886,0.7,138.14,138.12,7.2398615]
[1764363659183,3.81959425,138.15,138.12,7.2398615]
[1764363659488,4.51959425,138.15,138.12,7.2398615]
[1764363659697,4.51959425,138.15,138.12,7.9398615]
[1764363661288,8.13709425,138.18,138.13,3.88]
[1764363661462,4.51959425,138.17,138.14,7.23903286]
[1764363661969,3.81959425,138.16,138.14,7.93903286]
[1764363662166,4.51959425,138.17,138.14,7.93903286]
[1764363666480,4.71959425,138.18,138.15,0.68]
[1764363667885,4.71959425,138.18,138.15,7.91811702]
[1764363668087,0.9,138.18,138.15,7.91811702]
[1764363668386,3.81959425,138.16,138.15,7.23811702]
[1764363670074,11.05724004,138.17,138.14,61.2]
[1764363670279,4.51959425,138.16,138.14,61.2]
[1764363670585,3.81959425,138.16,138.14,61.2]
[1764363670783,0.7,138.15,138.14,61.2]
[1764363671085,4.51959425,138.15,138.14,61.2]
[1764363672083,3.81959425,138.15,138.14,61.2]
[1764363674392,4.51959425,138.16,138.14,61.2]
[1764363675315,4.51959425,138.16,138.14,68.43900527]
[1764363677295,4.51959425,138.16,138.14,61.2]
[1764363677486,3.81959425,138.15,138.14,61.2]
[1764363678898,3.81959425,138.15,138.14,68.43903286]
[1764363680799,3.81959425,138.15,138.14,61.2]
[1764363681009,4.47959425,138.15,138.14,61.2]
[1764363681899,4.47959425,138.15,138.09,7.24165399]
[1764363681900,14.89810311,138.15,138.09,7.24165399]
[1764363682080,3.81959425,138.1,138.09,7.24165399]
[1764363682284,3.81959425,138.11,138.09,7.24165399]
[1764363682684,4.47959425,138.11,138.09,7.24165399]
[1764363682896,3.81959425,138.11,138.09,7.92165399]
[1764363685206,3.81959425,138.11,138.09,0.68]
[1764363686001,7.24024903,138.12,138.09,0.68]
[1764363686200,3.81959425,138.11,138.09,0.68]
[1764363686386,4.47959425,138.11,138.09,0.68]
[1764363687010,3.81959425,138.11,138.09,0.68]
[1764363687298,3.81959425,138.11,138.09,61.2]
[1764363687505,3.81959425,138.1,138.09,61.2]
[1764363687698,4.47959425,138.1,138.09,61.2]
[1764363687901,3.81959425,138.1,138.09,61.2]
[1764363688484,11.72053127,138.11,138.09,61.2]
[1764363688697,11.72053127,138.11,138.09,61.88]
[1764363688896,11.72053127,138.11,138.09,61.2]
[1764363690606,11.06053127,138.11,138.09,61.88]
[1764363695696,3.81959425,138.14,138.1,0.66]
[1764363695901,3.81959425,138.14,138.1,61.86]
[1764363696090,3.81959425,138.15,138.11,3.18]
[1764363696297,11.05774178,138.16,138.12,0.66]
[1764363696493,0.66,138.17,138.11,64.38]
[1764363696494,3.81959425,138.13,138.11,64.38]
[1764363696813,3.81959425,138.14,138.11,72.28055572]
[1764363697015,3.81959425,138.14,138.12,0.66]
[1764363698086,3.81959425,138.16,138.12,7.90007697]
[1764363698293,3.81959425,138.14,138.12,0.66]
[1764363698498,3.81959425,138.14,138.11,71.62045504]
[1764363698704,3.81959425,138.14,138.12,0.66]
[1764363698900,0.66,138.15,138.12,0.66]
[1764363699099,4.47959425,138.15,138.12,0.66]
[1764363699294,3.81959425,138.14,138.12,0.66]
[1764363701224,3.81959425,138.14,138.12,7.90007582]
[1764363702100,3.81959425,138.14,138.12,69.10007582]
[1764363704004,3.81959425,138.13,138.12,61.2]
[1764363706119,11.71915118,138.13,138.12,61.2]
[1764363706706,11.71915118,138.13,138.09,72.28159033]
[1764363706915,3.81959425,138.11,138.09,61.86]
[1764363707422,3.81959425,138.1,138.09,0.66]
[1764363708324,11.06038823,138.11,138.09,0.66]
[1764363709628,25.33844927,138.13,138.08,7.24194271]
[1764363709827,25.33844927,138.13,138.09,0.66]
[1764363709828,3.81959425,138.11,138.09,0.66]
[1764363710824,11.0602811,138.11,138.09,0.66]
[1764363714531,9.68638874,138.11,138.09,0.66]
[1764363715636,9.68638874,138.11,138.07,10.42247138]
[1764363715808,2.44570189,138.1,138.08,0.66]
[1764363716917,2.44570189,138.1,138.08,62.06]
[1764363717122,7.24068685,138.11,138.08,69.30201878]
[1764363717123,2.44570189,138.11,138.08,69.30201878]
[1764363717310,2.44570189,138.11,138.09,0.66]
[1764363718308,18.32010049,138.13,138.09,62.06]
[1764363718309,2.44570189,138.13,138.09,62.06]
[1764363718529,2.44570189,138.14,138.1,3.18]